[Event "*** SCC Grand Prix: Titled Tuesday Blitz"]
[Site "Chess.com"]
[Date "2020.10.13"]
[Round "6"]
[White "amintabatabaei"]
[Black "ViditYT"]
[Result "1-0"]
[WhiteElo "2923"]
[BlackElo "2850"]
[TimeControl "180+1"]
[EndTime "11:06:33 PDT"]
[Termination "amintabatabaei won by resignation"]

1. d4 {[%clk 0:03:00.9]} 1... Nf6 {[%clk 0:02:59.5]} 2. Nf3 {[%clk 0:03:00.9]}
2... d5 {[%clk 0:02:59.1]} 3. c3 {[%clk 0:03:00.3]} 3... Bf5 {[%clk 0:02:51.2]}
4. Qb3 {[%clk 0:02:58.4]} 4... Qc8 {[%clk 0:02:46.8]} 5. c4 {[%clk 0:02:58.8]}
5... e6 {[%clk 0:02:45.9]} 6. cxd5 {[%clk 0:02:58.9]} 6... exd5 {[%clk
0:02:44.8]} 7. Nc3 {[%clk 0:02:59.4]} 7... c6 {[%clk 0:02:44.9]} 8. Bf4 {[%clk
0:02:56]} 8... Nbd7 {[%clk 0:02:42.8]} 9. Rc1 {[%clk 0:02:56.4]} 9... a6 {[%clk
0:02:36.8]} 10. h3 {[%clk 0:02:56.1]} 10... Be7 {[%clk 0:02:36.5]} 11. e3 {[%clk
0:02:54.8]} 11... O-O {[%clk 0:02:35.9]} 12. Be2 {[%clk 0:02:54.4]} 12... h6
{[%clk 0:02:29.8]} 13. O-O {[%clk 0:02:51.4]} 13... Be6 {[%clk 0:02:29.8]} 14.
Qc2 {[%clk 0:02:33]} 14... Qd8 {[%clk 0:02:23.4]} 15. a3 {[%clk 0:02:29.1]}
15... Re8 {[%clk 0:02:22.4]} 16. Na4 {[%clk 0:02:22.9]} 16... Ne4 {[%clk
0:02:20.1]} 17. Nd2 {[%clk 0:02:22.7]} 17... Bd6 {[%clk 0:01:56.7]} 18. Bxd6
{[%clk 0:02:12.1]} 18... Nxd6 {[%clk 0:01:56.5]} 19. Bd3 {[%clk 0:02:04.7]}
19... Qe7 {[%clk 0:01:30.2]} 20. Nc5 {[%clk 0:01:57.6]} 20... Nxc5 {[%clk
0:01:20.3]} 21. dxc5 {[%clk 0:01:58.5]} 21... Nb5 {[%clk 0:00:57.4]} 22. Nf3
{[%clk 0:01:57.6]} 22... Qf6 {[%clk 0:00:54]} 23. a4 {[%clk 0:01:57.7]} 23...
Nc7 {[%clk 0:00:50.7]} 24. Nd4 {[%clk 0:01:58.1]} 24... Bd7 {[%clk 0:00:50.7]}
25. b4 {[%clk 0:01:57]} 25... Ne6 {[%clk 0:00:50.6]} 26. Nf5 {[%clk 0:01:38.1]}
26... Rab8 {[%clk 0:00:40.9]} 27. Nd6 {[%clk 0:01:34.1]} 27... Red8 {[%clk
0:00:37.9]} 28. Qc3 {[%clk 0:01:31.1]} 28... Qxc3 {[%clk 0:00:33.3]} 29. Rxc3
{[%clk 0:01:32]} 29... g6 {[%clk 0:00:15.2]} 30. Rb1 {[%clk 0:01:26.8]} 30... d4
{[%clk 0:00:10.3]} 31. exd4 {[%clk 0:01:25.9]} 31... Nxd4 {[%clk 0:00:11.2]} 32.
Rd1 {[%clk 0:01:17.5]} 32... Be6 {[%clk 0:00:10.2]} 33. Bxa6 {[%clk 0:00:58.7]}
33... bxa6 {[%clk 0:00:07.2]} 34. Rxd4 {[%clk 0:00:58.9]} 34... a5 {[%clk
0:00:07.8]} 35. b5 {[%clk 0:00:57.4]} 35... Bd7 {[%clk 0:00:06.7]} 36. b6 {[%clk
0:00:56.7]} 36... Be6 {[%clk 0:00:07.1]} 37. Rcd3 {[%clk 0:00:56.5]} 37... Kg7
{[%clk 0:00:06.7]} 1-0

[Event "*** SCC Grand Prix: Titled Tuesday Blitz"]
[Site "Chess.com"]
[Date "2020.10.13"]
[Round "6"]
[White "vladislavkovalev"]
[Black "1977Ivan"]
[Result "1-0"]
[WhiteElo "2856"]
[BlackElo "2682"]
[TimeControl "180+1"]
[EndTime "11:06:35 PDT"]
[Termination "vladislavkovalev won by resignation"]

1. e4 {[%clk 0:03:00.9]} 1... c5 {[%clk 0:03:00.5]} 2. Be2 {[%clk 0:03:01.1]}
2... Nc6 {[%clk 0:02:59]} 3. d3 {[%clk 0:03:01.6]} 3... e6 {[%clk 0:02:58.4]} 4.
f4 {[%clk 0:03:02.1]} 4... d5 {[%clk 0:02:58.9]} 5. c3 {[%clk 0:03:01.7]} 5...
Bd6 {[%clk 0:02:58.2]} 6. Nf3 {[%clk 0:03:01.7]} 6... Nge7 {[%clk 0:02:57.6]} 7.
O-O {[%clk 0:02:58.7]} 7... f6 {[%clk 0:02:57.2]} 8. Be3 {[%clk 0:02:57.8]} 8...
O-O {[%clk 0:02:56.5]} 9. Nbd2 {[%clk 0:02:56.7]} 9... b6 {[%clk 0:02:56.1]} 10.
g3 {[%clk 0:02:51.9]} 10... Bb7 {[%clk 0:02:54.5]} 11. Re1 {[%clk 0:02:50.9]}
11... Qd7 {[%clk 0:02:54.4]} 12. Bf1 {[%clk 0:02:51.4]} 12... Rae8 {[%clk
0:02:53.7]} 13. Bg2 {[%clk 0:02:51.6]} 13... Bc7 {[%clk 0:02:53.5]} 14. Qc2
{[%clk 0:02:51]} 14... h6 {[%clk 0:02:49.5]} 15. a3 {[%clk 0:02:50.4]} 15... a5
{[%clk 0:02:47.5]} 16. Rad1 {[%clk 0:02:47]} 16... g5 {[%clk 0:02:46.1]} 17. Bh3
{[%clk 0:02:40.2]} 17... d4 {[%clk 0:02:40.9]} 18. cxd4 {[%clk 0:02:38.8]} 18...
cxd4 {[%clk 0:02:40.5]} 19. Bf2 {[%clk 0:02:34.2]} 19... gxf4 {[%clk 0:02:37.8]}
20. Nb3 {[%clk 0:02:25.9]} 20... fxg3 {[%clk 0:02:34.8]} 21. hxg3 {[%clk
0:02:26.8]} 21... Ng6 {[%clk 0:02:33.9]} 22. Nbxd4 {[%clk 0:02:10]} 22... Nxd4
{[%clk 0:02:33.5]} 23. Nxd4 {[%clk 0:02:10.3]} 23... Bxg3 {[%clk 0:02:27.5]} 24.
Bxg3 {[%clk 0:02:08.3]} 24... Qxd4+ {[%clk 0:02:26.6]} 25. Kh2 {[%clk
0:02:08.4]} 25... Re7 {[%clk 0:02:19.5]} 26. Rg1 {[%clk 0:01:37.2]} 26... Kh7
{[%clk 0:02:18.8]} 27. Rdf1 {[%clk 0:01:09.2]} 27... f5 {[%clk 0:01:59.4]} 28.
exf5 {[%clk 0:01:03.2]} 28... exf5 {[%clk 0:02:00.3]} 29. Bxf5 {[%clk
0:01:03.6]} 29... Rxf5 {[%clk 0:01:59.5]} 30. Rxf5 {[%clk 0:01:02.3]} 30... Nh4
{[%clk 0:01:59.7]} 31. Qf2 {[%clk 0:00:56.3]} 31... Qxf2+ {[%clk 0:01:43.5]} 32.
Rxf2 {[%clk 0:00:56.2]} 32... Nf3+ {[%clk 0:01:42.9]} 33. Rxf3 {[%clk
0:00:56.8]} 33... Bxf3 {[%clk 0:01:43.3]} 34. Bd6 {[%clk 0:00:46.8]} 34... Re2+
{[%clk 0:01:36.7]} 35. Kg3 {[%clk 0:00:47.1]} 35... Bd5 {[%clk 0:01:36.7]} 36.
Kf4 {[%clk 0:00:39.4]} 36... h5 {[%clk 0:01:15.7]} 37. Rg5 {[%clk 0:00:35.1]}
37... Bf7 {[%clk 0:01:14.9]} 38. Be5 {[%clk 0:00:31.8]} 38... Bg6 {[%clk
0:01:14.9]} 39. Bc3 {[%clk 0:00:25.9]} 39... h4 {[%clk 0:01:08.1]} 40. Rg4
{[%clk 0:00:25.9]} 40... Rh2 {[%clk 0:01:04.8]} 41. Kg5 {[%clk 0:00:21.4]} 41...
h3 {[%clk 0:01:03.8]} 42. Rh4+ {[%clk 0:00:20.5]} 42... Kg8 {[%clk 0:01:02]} 43.
Kxg6 {[%clk 0:00:20.5]} 43... Rg2+ {[%clk 0:01:01.7]} 44. Kf6 {[%clk 0:00:18.2]}
44... h2 {[%clk 0:01:02.6]} 45. Ke6 {[%clk 0:00:17.9]} 45... Re2+ {[%clk
0:01:01.5]} 46. Be5 {[%clk 0:00:18.4]} 1-0

[Event "*** SCC Grand Prix: Titled Tuesday Blitz"]
[Site "Chess.com"]
[Date "2020.10.13"]
[Round "6"]
[White "LionTheLeon_06"]
[Black "CarlssonLudvig"]
[Result "1-0"]
[WhiteElo "2632"]
[BlackElo "2478"]
[TimeControl "180+1"]
[EndTime "11:06:37 PDT"]
[Termination "LionTheLeon_06 won by resignation"]

1. d4 {[%clk 0:03:00.9]} 1... d5 {[%clk 0:02:59.5]} 2. c4 {[%clk 0:03:01]} 2...
c6 {[%clk 0:02:59.7]} 3. Nc3 {[%clk 0:03:00]} 3... Nf6 {[%clk 0:02:59.8]} 4. Nf3
{[%clk 0:03:00.1]} 4... e6 {[%clk 0:02:59.4]} 5. Bg5 {[%clk 0:02:58.8]} 5...
Nbd7 {[%clk 0:02:59.8]} 6. e3 {[%clk 0:02:58.7]} 6... Qa5 {[%clk 0:02:59.9]} 7.
Nd2 {[%clk 0:02:41.1]} 7... Bb4 {[%clk 0:02:58.8]} 8. Rc1 {[%clk 0:02:40.5]}
8... dxc4 {[%clk 0:02:57.7]} 9. Bxf6 {[%clk 0:02:38.3]} 9... Nxf6 {[%clk
0:02:56.7]} 10. Nxc4 {[%clk 0:02:38.7]} 10... Qxa2 {[%clk 0:02:49.7]} 11. Ra1
{[%clk 0:02:28.4]} 11... Qxb2 {[%clk 0:02:42.8]} 12. Nxb2 {[%clk 0:02:27.4]}
12... Bxc3+ {[%clk 0:02:43]} 13. Ke2 {[%clk 0:02:26.7]} 13... Bxb2 {[%clk
0:02:43.3]} 14. Ra2 {[%clk 0:02:21.5]} 14... Bc3 {[%clk 0:02:43.3]} 15. Qb3
{[%clk 0:02:21.2]} 15... Nd5 {[%clk 0:02:35.1]} 16. e4 {[%clk 0:02:19.6]} 16...
Bxd4 {[%clk 0:02:30.3]} 17. exd5 {[%clk 0:02:19.2]} 17... exd5 {[%clk
0:02:30.6]} 18. Kf3 {[%clk 0:02:10.5]} 18... O-O {[%clk 0:02:29.6]} 19. Bd3
{[%clk 0:02:09.2]} 19... Bb6 {[%clk 0:02:22.2]} 20. Re1 {[%clk 0:01:52.6]} 20...
Be6 {[%clk 0:02:22]} 21. Qb1 {[%clk 0:01:50.8]} 21... h6 {[%clk 0:02:19.7]} 22.
Bf5 {[%clk 0:01:50.1]} 22... Rae8 {[%clk 0:02:11.8]} 23. Rae2 {[%clk 0:01:48.8]}
23... Bxf5 {[%clk 0:02:08.4]} 24. Qxf5 {[%clk 0:01:46.8]} 24... Re6 {[%clk
0:02:08.8]} 25. Qd3 {[%clk 0:01:23.8]} 25... Rf6+ {[%clk 0:01:59.2]} 26. Kg3
{[%clk 0:01:24]} 26... Rg6+ {[%clk 0:01:56.9]} 27. Kh3 {[%clk 0:01:24.2]} 27...
d4 {[%clk 0:01:42.5]} 28. g3 {[%clk 0:01:21.4]} 28... c5 {[%clk 0:01:42.1]} 29.
Re8 {[%clk 0:01:21.1]} 29... Rc6 {[%clk 0:01:30.4]} 30. Qe4 {[%clk 0:01:15.3]}
30... g6 {[%clk 0:01:25.6]} 31. Rxf8+ {[%clk 0:01:13.4]} 31... Kxf8 {[%clk
0:01:26.5]} 32. Qe8+ {[%clk 0:01:13.4]} 32... Kg7 {[%clk 0:01:26.4]} 33. Re7
{[%clk 0:01:11.4]} 33... Rf6 {[%clk 0:01:25.5]} 34. f4 {[%clk 0:01:02.2]} 34...
d3 {[%clk 0:01:23.6]} 35. Rxb7 {[%clk 0:01:02.3]} 35... c4 {[%clk 0:01:23.1]}
36. Rb8 {[%clk 0:01:01.5]} 36... g5 {[%clk 0:01:13.2]} 37. Qh8+ {[%clk
0:00:58.9]} 37... Kg6 {[%clk 0:01:12.7]} 38. Rg8+ {[%clk 0:00:57]} 38... Kf5
{[%clk 0:01:12.6]} 39. Qh7+ {[%clk 0:00:57.4]} 39... Ke6 {[%clk 0:01:08.1]} 40.
Qe4+ {[%clk 0:00:57.2]} 40... Kd7 {[%clk 0:01:04.3]} 41. Qb7+ {[%clk 0:00:52.8]}
41... Bc7 {[%clk 0:01:01]} 42. Qd5+ {[%clk 0:00:48.4]} 42... Rd6 {[%clk
0:01:00.5]} 43. Qxf7+ {[%clk 0:00:48.4]} 43... Kc6 {[%clk 0:00:59.3]} 44. Qxc4+
{[%clk 0:00:48.5]} 44... Kb7 {[%clk 0:00:59.7]} 45. Qb5+ {[%clk 0:00:45.4]}
45... Bb6 {[%clk 0:00:57.8]} 46. Rg7+ {[%clk 0:00:45.8]} 46... Kc8 {[%clk
0:00:56.1]} 47. Qa6+ {[%clk 0:00:44]} 47... Kd8 {[%clk 0:00:55.7]} 48. Qb7
{[%clk 0:00:43.7]} 48... g4+ {[%clk 0:00:51.1]} 49. Kxg4 {[%clk 0:00:41]} 49...
h5+ {[%clk 0:00:50.7]} 50. Kh3 {[%clk 0:00:40.7]} 1-0

[Event "*** SCC Grand Prix: Titled Tuesday Blitz"]
[Site "Chess.com"]
[Date "2020.10.13"]
[Round "6"]
[White "AttilaTurzo"]
[Black "FMJoseHerrera"]
[Result "0-1"]
[WhiteElo "2391"]
[BlackElo "2564"]
[TimeControl "180+1"]
[EndTime "11:06:37 PDT"]
[Termination "FMJoseHerrera won by resignation"]

1. d4 {[%clk 0:03:00.9]} 1... Nf6 {[%clk 0:02:59.3]} 2. Nf3 {[%clk 0:03:01.2]}
2... g6 {[%clk 0:02:59]} 3. Bg5 {[%clk 0:03:01.5]} 3... Bg7 {[%clk 0:02:59.1]}
4. c3 {[%clk 0:03:02.2]} 4... d6 {[%clk 0:02:58.2]} 5. Nbd2 {[%clk 0:03:02.7]}
5... O-O {[%clk 0:02:57.8]} 6. e4 {[%clk 0:03:02.9]} 6... c5 {[%clk 0:02:57.6]}
7. dxc5 {[%clk 0:03:03.8]} 7... dxc5 {[%clk 0:02:57.4]} 8. Bc4 {[%clk
0:03:03.5]} 8... a6 {[%clk 0:02:53]} 9. a4 {[%clk 0:03:02.9]} 9... b6 {[%clk
0:02:52.3]} 10. O-O {[%clk 0:03:02.5]} 10... Bb7 {[%clk 0:02:52]} 11. Qe2 {[%clk
0:03:03]} 11... Qc7 {[%clk 0:02:48.4]} 12. e5 {[%clk 0:03:01.2]} 12... Ng4
{[%clk 0:02:41]} 13. Rfe1 {[%clk 0:02:50.8]} 13... Nc6 {[%clk 0:02:14.3]} 14.
Bf4 {[%clk 0:02:46.8]} 14... e6 {[%clk 0:02:13.3]} 15. h3 {[%clk 0:02:35.6]}
15... Nh6 {[%clk 0:02:13.2]} 16. Ne4 {[%clk 0:02:27]} 16... Nf5 {[%clk
0:02:03.3]} 17. g4 {[%clk 0:02:03.8]} 17... Nfe7 {[%clk 0:01:50.4]} 18. Nd6
{[%clk 0:01:52.1]} 18... Na5 {[%clk 0:01:41.8]} 19. Bd3 {[%clk 0:01:39.6]} 19...
Nd5 {[%clk 0:01:40.9]} 20. Bg3 {[%clk 0:01:34.5]} 20... Rad8 {[%clk 0:01:34.7]}
21. Nxb7 {[%clk 0:01:31.9]} 21... Qxb7 {[%clk 0:01:35.6]} 22. Be4 {[%clk
0:01:31.5]} 22... Qa7 {[%clk 0:01:26]} 23. Rad1 {[%clk 0:01:18.1]} 23... Rfe8
{[%clk 0:01:16.6]} 24. Bh4 {[%clk 0:01:11.8]} 24... Rd7 {[%clk 0:01:12.7]} 25.
c4 {[%clk 0:01:06.9]} 25... Nb4 {[%clk 0:00:55.9]} 26. Bf6 {[%clk 0:00:58.9]}
26... Qc7 {[%clk 0:00:39.7]} 27. Qe3 {[%clk 0:00:51]} 27... Nxc4 {[%clk
0:00:35.8]} 28. Qg5 {[%clk 0:00:49.3]} 28... Nxb2 {[%clk 0:00:27.6]} 29. Rxd7
{[%clk 0:00:42.9]} 29... Qxd7 {[%clk 0:00:28.5]} 30. h4 {[%clk 0:00:32.9]} 30...
N2d3 {[%clk 0:00:27.2]} 31. Rd1 {[%clk 0:00:28.3]} 31... Qxa4 {[%clk 0:00:26.9]}
32. Rxd3 {[%clk 0:00:20.5]} 32... Nxd3 {[%clk 0:00:26.7]} 33. Bxd3 {[%clk
0:00:21.4]} 33... Qd1+ {[%clk 0:00:27.4]} 34. Bf1 {[%clk 0:00:20.7]} 34... Qxf3
{[%clk 0:00:27.6]} 0-1

[Event "*** SCC Grand Prix: Titled Tuesday Blitz"]
[Site "Chess.com"]
[Date "2020.10.13"]
[Round "6"]
[White "ajdemipopushi"]
[Black "Margarita2907"]
[Result "1-0"]
[WhiteElo "2342"]
[BlackElo "2170"]
[TimeControl "180+1"]
[EndTime "11:06:41 PDT"]
[Termination "ajdemipopushi won by resignation"]

1. Nf3 {[%clk 0:03:00.9]} 1... Nf6 {[%clk 0:02:54.2]} 2. g3 {[%clk 0:03:00.9]}
2... c5 {[%clk 0:02:53.3]} 3. Bg2 {[%clk 0:03:00.8]} 3... Nc6 {[%clk 0:02:49.8]}
4. O-O {[%clk 0:02:59.7]} 4... e5 {[%clk 0:02:49.8]} 5. c4 {[%clk 0:02:59.3]}
5... d5 {[%clk 0:02:47.1]} 6. cxd5 {[%clk 0:02:58.9]} 6... Nxd5 {[%clk 0:02:48]}
7. Nc3 {[%clk 0:02:59]} 7... Nc7 {[%clk 0:02:48]} 8. a3 {[%clk 0:02:57.4]} 8...
Be7 {[%clk 0:02:44.4]} 9. b4 {[%clk 0:02:55.6]} 9... cxb4 {[%clk 0:02:39.1]} 10.
axb4 {[%clk 0:02:55.6]} 10... Bxb4 {[%clk 0:02:37.5]} 11. Nxe5 {[%clk
0:02:52.8]} 11... Nxe5 {[%clk 0:02:22.2]} 12. Qa4+ {[%clk 0:02:52.1]} 12... Nc6
{[%clk 0:01:59.5]} 13. Bxc6+ {[%clk 0:02:51.2]} 13... bxc6 {[%clk 0:01:59.2]}
14. Qxb4 {[%clk 0:02:51.2]} 14... Be6 {[%clk 0:01:51.2]} 15. Ba3 {[%clk
0:02:44.3]} 15... Nb5 {[%clk 0:01:44.9]} 16. Nxb5 {[%clk 0:02:42.6]} 16... cxb5
{[%clk 0:01:41.9]} 17. Qxb5+ {[%clk 0:02:42.6]} 17... Qd7 {[%clk 0:01:38.2]} 18.
Qb4 {[%clk 0:02:23.1]} 18... f6 {[%clk 0:01:32.5]} 19. Rfc1 {[%clk 0:02:17.9]}
19... Kf7 {[%clk 0:01:29.3]} 20. Qf4 {[%clk 0:02:02]} 20... Rhc8 {[%clk
0:01:26.2]} 21. d3 {[%clk 0:01:54.4]} 21... Rxc1+ {[%clk 0:01:17.6]} 22. Rxc1
{[%clk 0:01:53.9]} 22... Rc8 {[%clk 0:01:18]} 23. h4 {[%clk 0:01:52.7]} 23...
Rxc1+ {[%clk 0:01:15]} 24. Qxc1 {[%clk 0:01:52.4]} 24... Bd5 {[%clk 0:01:10.1]}
25. Qc5 {[%clk 0:01:46.6]} 25... Qb7 {[%clk 0:01:00.9]} 26. h5 {[%clk
0:01:40.6]} 26... Qb1+ {[%clk 0:00:45.1]} 27. Bc1 {[%clk 0:01:39.9]} 27... Bb7
{[%clk 0:00:40.4]} 28. f3 {[%clk 0:01:23]} 28... Qb6 {[%clk 0:00:27.4]} 29. Be3
{[%clk 0:01:22.1]} 29... Qxc5 {[%clk 0:00:26.4]} 30. Bxc5 {[%clk 0:01:22.1]}
30... a5 {[%clk 0:00:25.5]} 31. Kf2 {[%clk 0:01:21.6]} 31... Bc6 {[%clk
0:00:22.7]} 32. e4 {[%clk 0:01:20.1]} 32... g6 {[%clk 0:00:12.1]} 33. hxg6+
{[%clk 0:01:19]} 33... hxg6 {[%clk 0:00:10.4]} 34. Ke3 {[%clk 0:01:19]} 34... f5
{[%clk 0:00:10.3]} 35. d4 {[%clk 0:01:18.2]} 35... fxe4 {[%clk 0:00:09.1]} 36.
fxe4 {[%clk 0:01:18.2]} 36... Bb5 {[%clk 0:00:08.8]} 37. d5 {[%clk 0:01:16.5]}
37... a4 {[%clk 0:00:08]} 38. Kd4 {[%clk 0:01:16]} 38... g5 {[%clk 0:00:06.6]}
39. e5 {[%clk 0:01:15.6]} 39... g4 {[%clk 0:00:05.4]} 40. Ke4 {[%clk 0:01:08.4]}
40... Kg6 {[%clk 0:00:04.4]} 41. e6 {[%clk 0:01:06.9]} 41... Be2 {[%clk
0:00:04.5]} 42. Ke5 {[%clk 0:01:05.9]} 42... Bb5 {[%clk 0:00:03.5]} 43. d6
{[%clk 0:01:05.7]} 43... Kg7 {[%clk 0:00:02.9]} 44. d7 {[%clk 0:01:05.8]} 1-0

[Event "*** SCC Grand Prix: Titled Tuesday Blitz"]
[Site "Chess.com"]
[Date "2020.10.13"]
[Round "6"]
[White "Aguiar94"]
[Black "chigorin28"]
[Result "0-1"]
[WhiteElo "2577"]
[BlackElo "2435"]
[TimeControl "180+1"]
[EndTime "11:06:42 PDT"]
[Termination "chigorin28 won by resignation"]

1. e4 {[%clk 0:02:14.4]} 1... c5 {[%clk 0:02:49.1]} 2. Nf3 {[%clk 0:02:13.7]}
2... Nc6 {[%clk 0:02:48.3]} 3. Nc3 {[%clk 0:02:13.7]} 3... d6 {[%clk 0:02:44.3]}
4. d4 {[%clk 0:02:13.6]} 4... cxd4 {[%clk 0:02:43.2]} 5. Nxd4 {[%clk 0:02:14.5]}
5... Bd7 {[%clk 0:02:43.4]} 6. Bg5 {[%clk 0:02:08.1]} 6... h6 {[%clk 0:02:40.5]}
7. Bh4 {[%clk 0:02:07.5]} 7... Nxd4 {[%clk 0:02:33.3]} 8. Qxd4 {[%clk
0:02:06.3]} 8... e5 {[%clk 0:02:23.7]} 9. Qb4 {[%clk 0:01:52.4]} 9... Qxh4
{[%clk 0:02:19.7]} 10. Qxb7 {[%clk 0:01:52.2]} 10... Qd8 {[%clk 0:02:13]} 11.
Nb5 {[%clk 0:01:45.4]} 11... Rc8 {[%clk 0:02:02.2]} 12. O-O-O {[%clk 0:01:40.9]}
12... Bc6 {[%clk 0:01:51.2]} 13. Qxa7 {[%clk 0:01:33.3]} 13... Nf6 {[%clk
0:01:45.4]} 14. Qa6 {[%clk 0:01:19.2]} 14... Bxe4 {[%clk 0:01:30.5]} 15. c3
{[%clk 0:01:10.9]} 15... Rc6 {[%clk 0:01:09.4]} 16. Qa4 {[%clk 0:01:03.2]} 16...
Qd7 {[%clk 0:01:05.1]} 17. f3 {[%clk 0:00:58.1]} 17... Bg6 {[%clk 0:01:04.9]}
18. Nxd6+ {[%clk 0:00:23.7]} 18... Bxd6 {[%clk 0:01:01.6]} 19. Bb5 {[%clk
0:00:23.9]} 19... O-O {[%clk 0:00:58.2]} 20. Bxc6 {[%clk 0:00:24.4]} 20... Qf5
{[%clk 0:00:38.2]} 21. Be4 {[%clk 0:00:22.8]} 21... Nxe4 {[%clk 0:00:38.3]} 22.
fxe4 {[%clk 0:00:21.2]} 22... Qg5+ {[%clk 0:00:37.9]} 23. Kb1 {[%clk 0:00:20.6]}
23... Be7 {[%clk 0:00:35.2]} 24. g3 {[%clk 0:00:19]} 24... Qe3 {[%clk
0:00:33.5]} 25. Rhe1 {[%clk 0:00:18.1]} 25... Qb6 {[%clk 0:00:33.3]} 26. Ka1
{[%clk 0:00:17.2]} 26... Rb8 {[%clk 0:00:32.7]} 27. Rd2 {[%clk 0:00:17.8]} 27...
Bg5 {[%clk 0:00:29.6]} 28. Rc2 {[%clk 0:00:15.8]} 28... Bh5 {[%clk 0:00:27.8]}
29. c4 {[%clk 0:00:15.4]} 29... Qd4 {[%clk 0:00:24]} 30. c5 {[%clk 0:00:14.8]}
30... Qxa4 {[%clk 0:00:21]} 0-1

[Event "*** SCC Grand Prix: Titled Tuesday Blitz"]
[Site "Chess.com"]
[Date "2020.10.13"]
[Round "6"]
[White "novocane"]
[Black "zverr1"]
[Result "1-0"]
[WhiteElo "2282"]
[BlackElo "2414"]
[TimeControl "180+1"]
[EndTime "11:06:42 PDT"]
[Termination "novocane won by checkmate"]

1. d4 {[%clk 0:02:59.6]} 1... Nf6 {[%clk 0:02:56.1]} 2. c4 {[%clk 0:02:59.5]}
2... g6 {[%clk 0:02:57]} 3. Nc3 {[%clk 0:02:59.7]} 3... Bg7 {[%clk 0:02:55.8]}
4. e4 {[%clk 0:03:00.4]} 4... O-O {[%clk 0:02:56.7]} 5. f3 {[%clk 0:03:01.1]}
5... d6 {[%clk 0:02:57.1]} 6. Bg5 {[%clk 0:03:01.8]} 6... h6 {[%clk 0:02:54.8]}
7. Be3 {[%clk 0:03:01.8]} 7... e5 {[%clk 0:02:55.2]} 8. d5 {[%clk 0:03:00.7]}
8... c6 {[%clk 0:02:54.1]} 9. Qd2 {[%clk 0:03:00.6]} 9... Kh7 {[%clk 0:02:46.3]}
10. h4 {[%clk 0:02:57.5]} 10... Nh5 {[%clk 0:02:45.1]} 11. Nge2 {[%clk
0:02:57.1]} 11... f5 {[%clk 0:02:42.3]} 12. exf5 {[%clk 0:02:52.1]} 12... gxf5
{[%clk 0:02:43.2]} 13. g4 {[%clk 0:02:49.1]} 13... fxg4 {[%clk 0:02:36]} 14.
fxg4 {[%clk 0:02:48.7]} 14... Bxg4 {[%clk 0:02:36.9]} 15. O-O-O {[%clk
0:02:44.4]} 15... Nf4 {[%clk 0:02:24.2]} 16. Bxf4 {[%clk 0:02:36.6]} 16... exf4
{[%clk 0:02:25.1]} 17. Nxf4 {[%clk 0:02:24]} 17... Bxd1 {[%clk 0:02:12.6]} 18.
Nxd1 {[%clk 0:02:00.8]} 18... Be5 {[%clk 0:01:56]} 19. Ne6 {[%clk 0:01:51.1]}
19... Qf6 {[%clk 0:01:50.9]} 20. Nxf8+ {[%clk 0:01:44.2]} 20... Qxf8 {[%clk
0:01:50.7]} 21. Bd3+ {[%clk 0:01:42.9]} 21... Kh8 {[%clk 0:01:47.2]} 22. Rf1
{[%clk 0:01:37.6]} 22... Qg7 {[%clk 0:01:35.5]} 23. Ne3 {[%clk 0:01:07.5]} 23...
Nd7 {[%clk 0:01:18.6]} 24. Nf5 {[%clk 0:01:07.4]} 24... Qf6 {[%clk 0:01:07.5]}
25. Nxh6 {[%clk 0:00:59.5]} 25... Bxb2+ {[%clk 0:01:02.5]} 26. Qxb2 {[%clk
0:00:57.6]} 26... Qxb2+ {[%clk 0:01:03.4]} 27. Kxb2 {[%clk 0:00:57.6]} 27... Ne5
{[%clk 0:01:01.6]} 28. Nf7+ {[%clk 0:00:57]} 28... Nxf7 {[%clk 0:01:00.9]} 29.
Rxf7 {[%clk 0:00:56.7]} 29... cxd5 {[%clk 0:01:01.8]} 30. cxd5 {[%clk
0:00:56.1]} 30... b6 {[%clk 0:00:51.7]} 31. h5 {[%clk 0:00:50.2]} 31... a5
{[%clk 0:00:48]} 32. a4 {[%clk 0:00:46.9]} 32... Kg8 {[%clk 0:00:41.4]} 33. Rd7
{[%clk 0:00:44.9]} 33... Rf8 {[%clk 0:00:40.4]} 34. Rxd6 {[%clk 0:00:41.7]}
34... Rf4 {[%clk 0:00:40.7]} 35. Bb5 {[%clk 0:00:37.5]} 35... Rh4 {[%clk
0:00:38.3]} 36. h6 {[%clk 0:00:37.5]} 36... Rh5 {[%clk 0:00:33.7]} 37. Rxb6
{[%clk 0:00:37.3]} 37... Rxd5 {[%clk 0:00:33.5]} 38. Bc4 {[%clk 0:00:37]} 38...
Kh8 {[%clk 0:00:34.1]} 39. Bxd5 {[%clk 0:00:33.3]} 39... Kh7 {[%clk 0:00:34.5]}
40. Be4+ {[%clk 0:00:30.1]} 40... Kh8 {[%clk 0:00:35.4]} 41. Rb8# {[%clk
0:00:28.4]} 1-0

[Event "*** SCC Grand Prix: Titled Tuesday Blitz"]
[Site "Chess.com"]
[Date "2020.10.13"]
[Round "6"]
[White "Klavdia_Nik"]
[Black "CookiesAndIceCream"]
[Result "0-1"]
[WhiteElo "2114"]
[BlackElo "2404"]
[TimeControl "180+1"]
[EndTime "11:06:45 PDT"]
[Termination "CookiesAndIceCream won on time"]

1. Nf3 {[%clk 0:02:57.1]} 1... d5 {[%clk 0:02:59.6]} 2. c4 {[%clk 0:02:48.4]}
2... d4 {[%clk 0:02:58.2]} 3. g3 {[%clk 0:02:30.5]} 3... Nc6 {[%clk 0:02:54.6]}
4. d3 {[%clk 0:02:22.8]} 4... e5 {[%clk 0:02:52.7]} 5. Bg2 {[%clk 0:02:15.5]}
5... Bb4+ {[%clk 0:02:50.7]} 6. Nfd2 {[%clk 0:02:14.1]} 6... a5 {[%clk
0:02:34.8]} 7. O-O {[%clk 0:01:57.8]} 7... Nf6 {[%clk 0:02:25.1]} 8. b3 {[%clk
0:01:45.7]} 8... O-O {[%clk 0:02:23.3]} 9. a3 {[%clk 0:01:45.5]} 9... Be7 {[%clk
0:02:22.8]} 10. Ne4 {[%clk 0:01:33.1]} 10... Nxe4 {[%clk 0:02:10.7]} 11. Bxe4
{[%clk 0:01:31]} 11... Bh3 {[%clk 0:01:59.9]} 12. Re1 {[%clk 0:01:29.8]} 12...
Qd7 {[%clk 0:01:58.4]} 13. Nd2 {[%clk 0:01:28.4]} 13... Kh8 {[%clk 0:01:51.4]}
14. Bh1 {[%clk 0:01:22.7]} 14... f5 {[%clk 0:01:47.4]} 15. Bb2 {[%clk
0:01:18.6]} 15... Rae8 {[%clk 0:01:38.4]} 16. b4 {[%clk 0:01:08.8]} 16... axb4
{[%clk 0:01:34.1]} 17. Qa4 {[%clk 0:01:05.6]} 17... bxa3 {[%clk 0:01:27.9]} 18.
Bxa3 {[%clk 0:00:48.4]} 18... Bxa3 {[%clk 0:01:00.3]} 19. Qxa3 {[%clk
0:00:35.5]} 19... b6 {[%clk 0:00:41.5]} 20. Qa4 {[%clk 0:00:25.4]} 20... Nb8
{[%clk 0:00:35.5]} 21. Qxd7 {[%clk 0:00:18.2]} 21... Nxd7 {[%clk 0:00:35.5]} 22.
Ra7 {[%clk 0:00:10.4]} 22... Rc8 {[%clk 0:00:31.9]} 23. Bc6 {[%clk 0:00:06]}
23... Nc5 {[%clk 0:00:28.6]} 24. Rb1 {[%clk 0:00:04]} 24... Bg4 {[%clk
0:00:20.5]} 25. Kf1 {[%clk 0:00:02.6]} 25... Bh5 {[%clk 0:00:19.5]} 0-1